fUST/lending_fUST_20250202
["ID","MTS","AMOUNT","RATE_DAILY","PERIOD"]
[351231776,1738460951419,-504.2047428,0.00016438,2]
[351231777,1738460951438,-511.39065502,0.00016438,2]
[351231778,1738460951457,-501.6476339,0.00016438,2]
[351231779,1738460951477,-534.8059803,0.00016438,2]
[351231780,1738460951498,-501.63850848,0.00016438,2]
[351231781,1738460951518,-512.50072658,0.00016438,2]
[351231782,1738460951538,-481.7057793,0.00016438,2]
[351231783,1738460951558,-500.0,0.00016438,2]
[351231784,1738460951578,-500.0,0.00016438,2]
[351231785,1738460951598,-500.0,0.00016438,2]
[351231786,1738460951618,-500.0,0.00016438,2]
[351231787,1738460951638,-500.80939487,0.00016438,2]
[351231788,1738460951657,-503.37957667,0.00016438,2]
[351231789,1738460951677,-501.16897794,0.00016438,2]
[351231790,1738460951697,-504.12174967,0.00016438,2]
[351231791,1738460951717,-500.0,0.00016438,2]
[351231792,1738460951739,-503.71320141,0.00016438,2]
[351231793,1738460951760,-500.58925233,0.00016438,2]
[351231794,1738460951781,-505.47963902,0.00016438,2]
[351231795,1738460951803,-500.0,0.00016438,2]
[351231796,1738460951827,-500.0,0.00016438,2]
[351231797,1738460951849,-504.73843075,0.00016438,2]
[351231798,1738460951872,-500.0,0.00016438,2]
[351231799,1738460951898,-502.10317341,0.00016438,2]
[351231800,1738460951922,-500.0,0.00016438,2]
[351231801,1738460952049,-504.65111577,0.00016438,2]
[351231802,1738460952070,-500.0,0.00016438,2]
[351231803,1738460952092,-500.0,0.00016438,2]
[351231804,1738460952114,-503.08482774,0.00016438,2]
[351231805,1738460952136,-500.0,0.00016438,2]
[351231806,1738460952160,-500.0,0.00016438,2]
[351231807,1738460952181,-251.93336708,0.00016438,2]
[351231808,1738460952202,-504.6177495,0.00016438,2]
[351231809,1738460952223,-501.00174036,0.00016438,2]
[351231810,1738460952244,-500.0,0.00016438,2]
[351231811,1738460952265,-500.82905437,0.00016438,2]
[351231812,1738460952287,-500.0,0.00016438,2]
[351231813,1738460952309,-502.97052748,0.00016438,2]
[351231814,1738460952331,-500.0,0.00016438,2]
[351231815,1738460952352,-500.8412065,0.00016438,2]
[351231816,1738460952372,-500.0,0.00016438,2]
[351231817,1738460952394,-500.68233466,0.00016438,2]
[351231818,1738460952415,-500.0,0.00016438,2]
[351231819,1738460952436,-500.0,0.00016438,2]
[351231820,1738460952464,-500.0,0.00016438,2]
[351231821,1738460952486,-500.0,0.00016438,2]
[351231822,1738460952506,-505.68642077,0.00016438,2]
[351231823,1738460952527,-501.11664725,0.00016438,2]
[351231824,1738460952547,-500.72363333,0.00016438,2]
[351231825,1738460952568,-500.0,0.00016438,2]
[351231826,1738460952590,-500.0,0.00016438,2]
[351231827,1738460952610,-500.0,0.00016438,2]
[351231828,1738460952634,-500.0,0.00016438,2]
[351231829,1738460952656,-500.0,0.00016438,2]
[351231830,1738460952676,-245.61041145,0.00016438,2]
[351231831,1738460952696,-500.9513504,0.00016438,2]
[351231832,1738460952717,-500.0,0.00016438,2]
[351231833,1738460952741,-500.0,0.00016438,2]
[351231834,1738460952762,-500.0,0.00016438,2]
[351231835,1738460952784,-500.0,0.00016438,2]
[351231836,1738460952806,-500.0,0.00016438,2]
[351231837,1738460952830,-503.3692453,0.00016438,2]
[351231838,1738460952851,-500.0,0.00016438,2]
[351231839,1738460952871,-500.0,0.00016438,2]
[351231840,1738460952895,-441.43515108,0.00016438,2]
[351231841,1738460952917,-502.18787351,0.00016438,2]
[351231842,1738460952938,-500.45259569,0.00016438,2]
[351231843,1738460952960,-500.0,0.00016438,2]
[351231844,1738460952981,-500.0,0.00016438,2]
[351231845,1738460953002,-503.25476532,0.00016438,2]
[351231846,1738460953023,-500.0,0.00016438,2]
[351231847,1738460953043,-500.92619343,0.00016438,2]
[351231848,1738460953064,-503.88068414,0.00016438,2]
[351231849,1738460953085,-500.0,0.00016438,2]
[351231850,1738460953105,-500.0,0.00016438,2]
[351231851,1738460953124,-500.41211187,0.00016438,2]
[351231852,1738460953145,-500.0,0.00016438,2]
[351231853,1738460953166,-501.06361846,0.00016438,2]
[351231854,1738460953186,-503.77707503,0.00016438,2]
[351231855,1738460953209,-500.0,0.00016438,2]
[351231856,1738460953231,-501.99682054,0.00016438,2]
[351231857,1738460953252,-500.78690807,0.00016438,2]
[351231858,1738460953278,-503.43955699,0.00016438,2]
[351231859,1738460953299,-501.33174425,0.00016438,2]
[351231860,1738460953322,-505.19211161,0.00016438,2]
[351231861,1738460953344,-500.0,0.00016438,2]
[351231862,1738460953365,-500.0,0.00016438,2]
[351231863,1738460953387,-500.0,0.00016438,2]
[351231864,1738460953410,-500.0,0.00016438,2]
[351231865,1738460953431,-500.53716093,0.00016438,2]
[351231866,1738460953453,-501.83238126,0.00016438,2]
[351231867,1738460953476,-500.0,0.00016438,2]
[351231868,1738460953498,-500.90578574,0.00016438,2]
[351231869,1738460953520,-500.62441331,0.00016438,2]
[351231870,1738460953542,-500.0,0.00016438,2]
[351231871,1738460953563,-500.0,0.00016438,2]
[351231872,1738460953584,-502.04264711,0.00016438,2]
[351231873,1738460953604,-500.0,0.00016438,2]
[351231874,1738460953625,-502.89493583,0.00016438,2]
[351231875,1738460953646,-500.0,0.00016438,2]
[351231876,1738460953668,-500.0,0.00016438,2]
[351231877,1738460953690,-500.0,0.00016438,2]
[351231878,1738460953711,-500.0,0.00016438,2]
[351231879,1738460953730,-501.1666821,0.00016438,2]
[351231880,1738460953751,-500.0,0.00016438,2]
[351231881,1738460953773,-500.0,0.00016438,2]
[351231882,1738460953796,-500.0,0.00016438,2]
[351231883,1738460953820,-500.0,0.00016438,2]
[351231884,1738460953841,-500.0,0.00016438,2]
[351231885,1738460953864,-501.50530517,0.00016438,2]
[351231886,1738460953884,-502.05581333,0.00016438,2]
[351231887,1738460953907,-500.0,0.00016438,2]
[351231888,1738460953928,-501.54808729,0.00016438,2]
[351231889,1738460953950,-502.22217905,0.00016438,2]
[351231890,1738460953972,-500.87720009,0.00016438,2]
[351231891,1738460953994,-502.15990221,0.00016438,2]
[351231892,1738460954016,-504.67594544,0.00016438,2]
[351231893,1738460954037,-510.56553731,0.00016438,2]
[351231894,1738460954058,-500.0,0.00016438,2]
[351231895,1738460954081,-624.67298155,0.00016438,2]
[351231896,1738460954102,-509.19293436,0.00016438,2]
[351231897,1738460954123,-502.18523439,0.00016438,2]
[351231898,1738460954145,-500.46494183,0.00016438,2]
[351231899,1738460954166,-500.0,0.00016438,2]
[351231900,1738460954187,-500.0,0.00016438,2]
[351231901,1738460954299,-504.21501697,0.00016438,2]
[351231902,1738460954325,-500.0,0.00016438,2]
[351231903,1738460954347,-501.2948225,0.00016438,2]
[351231904,1738460954369,-500.0,0.00016438,2]
[351231905,1738460954391,-500.0,0.00016438,2]
[351231906,1738460954412,-500.0,0.00016438,2]
[351231907,1738460954434,-500.0,0.00016438,2]
[351231908,1738460954454,-501.04130416,0.00016438,2]
[351231909,1738460954475,-500.0,0.00016438,2]
[351231910,1738460954495,-500.0,0.00016438,2]
[351231911,1738460954515,-502.35344592,0.00016438,2]
[351231912,1738460954537,-507.13419515,0.00016438,2]
[351231913,1738460954558,-500.0,0.00016438,2]
[351231914,1738460954580,-500.0,0.00016438,2]
[351231915,1738460954602,-500.0,0.00016438,2]
[351231916,1738460954624,-500.0,0.00016438,2]
[351231917,1738460954645,-500.0,0.00016438,2]
[351231918,1738460954665,-502.65415292,0.00016438,2]
[351231919,1738460954686,-500.0,0.00016438,2]
[351231920,1738460954708,-502.99163922,0.00016438,2]
[351231921,1738460954729,-500.99071525,0.00016438,2]
[351231922,1738460954750,-500.0,0.00016438,2]
[351231923,1738460954771,-500.0,0.00016438,2]
[351231924,1738460954792,-500.0,0.00016438,2]
[351231925,1738460954814,-504.23768936,0.00016438,2]
[351231926,1738460954836,-500.0,0.00016438,2]
[351231927,1738460954856,-501.83878558,0.00016438,2]
[351231928,1738460954878,-500.86609483,0.00016438,2]
[351231929,1738460954902,-501.66202872,0.00016438,2]
[351231930,1738460954924,-500.0,0.00016438,2]
[351231931,1738460954945,-500.0,0.00016438,2]
[351231932,1738460954966,-500.0,0.00016438,2]
[351231933,1738460954989,-504.45507927,0.00016438,2]
[351231934,1738460955017,-500.0,0.00016438,2]
[351231935,1738460955039,-500.0,0.00016438,2]
[351231936,1738460955059,-500.67921638,0.00016438,2]
[351231937,1738460955082,-1532.95,0.00016438,2]
[351231938,1738460955106,-502.93677663,0.00016438,2]
[351231939,1738460955129,-500.72573147,0.00016438,2]
[351231940,1738460955152,-501.21147551,0.00016438,2]
[351231941,1738460955173,-503.30894403,0.00016438,2]
[351231942,1738460955195,-500.0,0.00016438,2]
[351231943,1738460955218,-504.40820129,0.00016438,2]
[351231944,1738460955240,-500.78971868,0.00016438,2]
[351231945,1738460955264,-500.0,0.00016438,2]
[351231946,1738460955285,-500.0,0.00016438,2]
[351231947,1738460955305,-505.55988272,0.00016438,2]
[351231948,1738460955326,-500.0,0.00016438,2]
[351231949,1738460955347,-500.0,0.00016438,2]
[351231950,1738460955368,-501.70467411,0.00016438,2]
[351231951,1738460955389,-501.9273319,0.00016438,2]
[351231952,1738460955409,-501.38363773,0.00016438,2]
[351231953,1738460955431,-845.17,0.00016438,2]
[351231954,1738460955452,-501.50248079,0.00016438,2]
[351231955,1738460955474,-500.0,0.00016438,2]
[351231956,1738460955495,-500.0,0.00016438,2]
[351231957,1738460955515,-501.66445453,0.00016438,2]
[351231958,1738460955536,-501.82668888,0.00016438,2]
[351231959,1738460955557,-1050.87,0.00016438,2]
[351231960,1738460955578,-506.16958618,0.00016438,2]
[351231961,1738460955600,-502.9115628,0.00016438,2]
[351231962,1738460955622,-500.0,0.00016438,2]
[351231963,1738460955643,-500.0,0.00016438,2]
[351231964,1738460955663,-500.99619456,0.00016438,2]
[351231965,1738460955684,-500.98430726,0.00016438,2]
[351231966,1738460955705,-500.0,0.00016438,2]
[351231967,1738460955725,-503.8575968,0.00016438,2]
[351231968,1738460955747,-999.54,0.00016438,2]
[351231969,1738460955769,-469.19831029,0.00016438,2]
[351231970,1738460955791,-500.0,0.00016438,2]
[351231971,1738460955813,-1073.92,0.00016438,2]
[351231972,1738460955838,-500.0,0.00016438,2]
[351231973,1738460955859,-500.79847976,0.00016438,2]
[351231974,1738460955878,-500.0,0.00016438,2]
[351231975,1738460955901,-503.67205165,0.00016438,2]
[351231976,1738460955922,-567.16227641,0.00016438,2]
[351231977,1738460955943,-500.0,0.00016438,2]
[351231978,1738460955965,-500.0,0.00016438,2]
[351231979,1738460955987,-505.18110481,0.00016438,2]
[351231980,1738460956008,-500.0,0.00016438,2]
[351231981,1738460956297,-500.0,0.00016438,2]
[351231982,1738460956318,-500.75548031,0.00016438,2]
[351231983,1738460956339,-507.10680979,0.00016438,2]
[351231984,1738460956361,-500.0,0.00016438,2]
[351231985,1738460956384,-507.39221855,0.00016438,2]
[351231986,1738460956405,-501.02880602,0.00016438,2]
[351231987,1738460956424,-501.86435004,0.00016438,2]
[351231988,1738460956446,-500.0,0.00016438,2]
[351231989,1738460956466,-498.13222151,0.00016438,2]
[351231990,1738460956489,-500.0,0.00016438,2]
[351231991,1738460956510,-500.0,0.00016438,2]
[351231992,1738460956532,-500.0,0.00016438,2]
[351231993,1738460956553,-504.07760253,0.00016438,2]
[351231994,1738460956576,-500.0,0.00016438,2]
[351231995,1738460956599,-501.63020061,0.00016438,2]
[351231996,1738460956618,-502.36073837,0.00016438,2]
[351231997,1738460956638,-500.0,0.00016438,2]
[351231998,1738460956732,-500.0,0.00016438,2]
[351231999,1738460956767,-500.0,0.00016438,2]
[351232000,1738460956790,-501.75561185,0.00016438,2]
[351232001,1738460956811,-505.78187464,0.00016438,2]
[351232002,1738460956835,-500.0,0.00016438,2]
[351232003,1738460956855,-502.92869783,0.00016438,2]
[351232004,1738460956879,-500.0,0.00016438,2]
[351232005,1738460956905,-501.1745909,0.00016438,2]
[351232006,1738460956926,-502.19461125,0.00016438,2]
[351232007,1738460956945,-500.0,0.00016438,2]
[351232008,1738460956966,-504.92511442,0.00016438,2]
[351232009,1738460956987,-167.60091912,0.00016438,2]
[351232010,1738460957010,-505.33138913,0.00016438,2]
[351232011,1738460957032,-613.34,0.00016438,2]
[351232012,1738460957053,-500.0,0.00016438,2]
[351232013,1738460957075,-500.0,0.00016438,2]
[351232014,1738460957096,-500.0,0.00016438,2]
[351232015,1738460957118,-504.98907639,0.00016438,2]
[351232016,1738460957142,-500.0,0.00016438,2]
[351232017,1738460957164,-501.39544041,0.00016438,2]
[351232018,1738460957186,-1003.58722392,0.00016438,2]
[351232019,1738460957212,-500.0,0.00016438,2]
[351232020,1738460957234,-500.0,0.00016438,2]
[351232021,1738460957255,-501.36750273,0.00016438,2]
[351232022,1738460957277,-500.0,0.00016438,2]
[351232023,1738460957298,-504.24112529,0.00016438,2]
[351232024,1738460957320,-945.6,0.00016438,2]
[351232025,1738460957350,-503.90631814,0.00016438,2]
[351232026,1738460957371,-500.0,0.00016438,2]
[351232027,1738460957393,-500.0,0.00016438,2]
[351232028,1738460957415,-12285.8,0.00016438,2]
[351232029,1738460957436,-504.08011382,0.00016438,2]
[351232030,1738460957458,-500.0,0.00016438,2]
[351232031,1738460957480,-2080.07,0.00016438,2]
[351232032,1738460957501,-501.22928611,0.00016438,2]
[351232033,1738460957523,-502.12572932,0.00016438,2]
[351232034,1738460957545,-504.72785556,0.00016438,2]
[351232035,1738460957567,-500.0,0.00016438,2]
[351232036,1738460957588,-501.92538751,0.00016438,2]
[351232037,1738460957609,-500.0,0.00016438,2]
[351232038,1738460957631,-500.0,0.00016438,2]
[351232039,1738460957653,-500.0,0.00016438,2]
[351232040,1738460957676,-500.0,0.00016438,2]
[351232041,1738460957697,-500.0,0.00016438,2]
[351232042,1738460957718,-502.28224242,0.00016438,2]
[351232043,1738460957740,-519.58,0.00016438,2]
[351232044,1738460957760,-500.0,0.00016438,2]
[351232045,1738460957782,-500.0,0.00016438,2]
[351232046,1738460957803,-502.5526681,0.00016438,2]
[351232047,1738460957827,-503.95072615,0.00016438,2]
[351232048,1738460957848,-500.0,0.00016438,2]
[351232049,1738460957869,-500.0,0.00016438,2]
[351232050,1738460957894,-501.92399289,0.00016438,2]
[351232051,1738460957918,-500.0,0.00016438,2]
[351232052,1738460957939,-500.0,0.00016438,2]
[351232053,1738460957961,-503.23678278,0.00016438,2]
[351232054,1738460957984,-500.0,0.00016438,2]
[351232055,1738460958006,-500.0,0.00016438,2]
[351232056,1738460958027,-500.64038429,0.00016438,2]
[351232057,1738460958049,-500.0,0.00016438,2]
[351232058,1738460958072,-500.0,0.00016438,2]
[351232059,1738460958096,-3573.74,0.00016438,2]
[351232060,1738460958120,-3573.74,0.00016438,2]
[351232061,1738460958141,-500.0,0.00016438,2]
[351232062,1738460958166,-3573.74,0.00016438,2]
[351232063,1738460958188,-501.2774471,0.00016438,2]
[351232064,1738460958220,-3573.74,0.00016438,2]
[351232065,1738460958242,-500.0,0.00016438,2]
[351232066,1738460958263,-504.58516785,0.00016438,2]
[351232067,1738460958286,-500.95438383,0.00016438,2]
[351232068,1738460958307,-500.0,0.00016438,2]
[351232069,1738460958331,-578.64,0.00016438,2]
[351232070,1738460958352,-501.26461619,0.00016438,2]
[351232071,1738460958374,-500.65919472,0.00016438,2]
[351232072,1738460958396,-507.64618562,0.00016438,2]
[351232073,1738460958419,-500.0,0.00016438,2]
[351232074,1738460958441,-302.61067248,0.00016438,2]
[351232075,1738460958466,-500.0,0.00016438,2]
[351232076,1738460958487,-504.94000362,0.00016438,2]
[351232077,1738460958509,-500.0,0.00016438,2]
[351232078,1738460958530,-500.0,0.00016438,2]
[351232079,1738460958552,-506.05523238,0.00016438,2]
[351232080,1738460958580,-500.0,0.00016438,2]
[351232081,1738460958601,-502.19146056,0.00016438,2]
[351232082,1738460958622,-503.14008885,0.00016438,2]
[351232083,1738460958645,-502.17822137,0.00016438,2]
[351232084,1738460958666,-500.0,0.00016438,2]
[351232085,1738460958686,-508.19728026,0.00016438,2]
[351232086,1738460958706,-502.00509214,0.00016438,2]
[351232087,1738460958728,-1567.03,0.00016438,2]
[351232088,1738460958748,-500.0,0.00016438,2]
[351232089,1738460958772,-500.0,0.00016438,2]
[351232090,1738460958794,-503.58050324,0.00016438,2]
[351232091,1738460958818,-500.0,0.00016438,2]
[351232092,1738460958933,-500.0,0.00016438,2]
[351232093,1738460958966,-500.0,0.00016438,2]
[351232094,1738460958994,-500.0,0.00016438,2]
[351232095,1738460959020,-500.0,0.00016438,2]
[351232096,1738460959044,-500.0,0.00016438,2]
[351232097,1738460959068,-500.0,0.00016438,2]
[351232098,1738460959095,-500.0,0.00016438,2]
[351232099,1738460959122,-3985.31,0.00016438,2]
[351232100,1738460959146,-500.85742421,0.00016438,2]
[351232101,1738460959168,-570.23479814,0.00016438,2]
[351232102,1738460959192,-500.0,0.00016438,2]
[351232103,1738460959215,-506.15609148,0.00016438,2]
[351232104,1738460959237,-500.0,0.00016438,2]
[351232105,1738460959259,-508.88440647,0.00016438,2]
[351232106,1738460959282,-500.0,0.00016438,2]
[351232107,1738460959305,-213.39786533,0.00016438,2]
[351232108,1738460959327,-511.84601996,0.00016438,2]
[351232109,1738460959350,-500.0,0.00016438,2]
[351232110,1738460959373,-500.0,0.00016438,2]
[351232111,1738460959395,-500.0,0.00016438,2]
[351232112,1738460959417,-500.0,0.00016438,2]
[351232113,1738460959439,-500.0,0.00016438,2]
[351232114,1738460959461,-500.0,0.00016438,2]
[351232115,1738460959483,-507.47408948,0.00016438,2]
[351232116,1738460959504,-504.08587047,0.00016438,2]
[351232117,1738460959527,-500.0,0.00016438,2]
[351232118,1738460959548,-502.72346331,0.00016438,2]
[351232119,1738460959571,-500.0,0.00016438,2]
[351232120,1738460959594,-500.0,0.00016438,2]
[351232121,1738460959616,-500.0,0.00016438,2]
[351232122,1738460959638,-500.0,0.00016438,2]
[351232123,1738460959660,-500.0,0.00016438,2]
[351232124,1738460959681,-500.0,0.00016438,2]
[351232125,1738460959703,-500.0,0.00016438,2]
[351232126,1738460959724,-500.0,0.00016438,2]
[351232127,1738460959745,-500.0,0.00016438,2]
[351232128,1738460959766,-500.0,0.00016438,2]
[351232129,1738460959788,-505.06840603,0.00016438,2]
[351232130,1738460959809,-500.0,0.00016438,2]
[351232131,1738460959833,-500.0,0.00016438,2]
[351232132,1738460959855,-500.0,0.00016438,2]
[351232133,1738460959879,-500.63130117,0.00016438,2]
[351232134,1738460959899,-500.0,0.00016438,2]
[351232135,1738460959921,-500.6693141,0.00016438,2]
[351232136,1738460959947,-500.0,0.00016438,2]
[351232137,1738460959970,-500.66989516,0.00016438,2]
[351232138,1738460959993,-500.0,0.00016438,2]
[351232139,1738460960017,-500.0,0.00016438,2]
[351232140,1738460960041,-502.61238347,0.00016438,2]
[351232141,1738460960064,-502.07574643,0.00016438,2]
[351232142,1738460960087,-501.37526044,0.00016438,2]
[351232143,1738460960110,-500.0,0.00016438,2]
[351232144,1738460960133,-502.10503699,0.00016438,2]
[351232145,1738460960156,-505.13599719,0.00016438,2]
[351232146,1738460960177,-501.35454928,0.00016438,2]
[351232147,1738460960200,-239.58712104,0.00016438,2]
[351232148,1738460960223,-501.37287348,0.00016438,2]
[351232149,1738460960244,-500.0,0.00016438,2]
[351232150,1738460960266,-500.0,0.00016438,2]
[351232151,1738460960288,-504.04820519,0.00016438,2]
[351232152,1738460960310,-503.0245434,0.00016438,2]
[351232153,1738460960331,-500.6722538,0.00016438,2]
[351232154,1738460960352,-500.63344191,0.00016473,2]
[351232155,1738460960374,-504.91411847,0.00016473,2]
[351232156,1738460960396,-501.09183101,0.00016473,2]
[351232157,1738460960418,-500.6248559,0.00016473,2]
[351232158,1738460960441,-500.0,0.00016473,2]
[351232159,1738460960465,-203.2137257,0.00016561,2]
[351232160,1738460960487,-500.0,0.00016574,2]
[351232161,1738460960510,-210.6998077,0.00016574,2]
[351232162,1738460960533,-500.0,0.00016574,2]
[351232163,1738460960559,-500.0,0.00016574,2]
[351232164,1738460960584,-500.0,0.00016574,2]
[351232165,1738460960607,-501.64052461,0.00016575,2]
[351232166,1738460960629,-518.01753633,0.00016575,2]
[351232167,1738460960651,-503.31349601,0.00016575,2]
[351232168,1738460960674,-502.9781972,0.00016575,2]
[351232169,1738460960696,-501.99855175,0.00016575,2]
[351232170,1738460960720,-204.87429057,0.00016575,2]
[351232171,1738460960743,-511.24714355,0.00016575,2]
[351232172,1738460960767,-502.79368819,0.00016575,2]
[351232173,1738460960790,-506.22535487,0.00016575,2]
[351232174,1738460960812,-503.56793399,0.00016575,2]
[351232175,1738460960837,-502.52280182,0.00016575,2]
[351232176,1738460960861,-592.08055325,0.00016575,2]
[351232177,1738460960884,-486.66321203,0.00016575,2]
[351232178,1738460960913,-502.534027,0.00016575,2]
[351232179,1738460960938,-505.37675582,0.00016575,2]
[351232180,1738460960961,-503.12153926,0.00016575,2]
[351232181,1738460961089,-500.0,0.00016575,2]
[351232182,1738460961111,-500.0,0.00016575,2]
[351232183,1738460961134,-503.6420647,0.00016575,2]
[351232184,1738460961158,-500.0,0.00016575,2]
[351232185,1738460961180,-500.0,0.00016575,2]
[351232186,1738460961202,-500.0,0.00016575,2]
[351232187,1738460961223,-505.0811641,0.00016575,2]
[351232188,1738460961244,-502.2549291,0.00016575,2]
[351232189,1738460961268,-510.45152027,0.00016575,2]
[351232190,1738460961289,-504.13558274,0.00016575,2]
[351232191,1738460961311,-504.06014812,0.00016575,2]
[351232192,1738460961332,-295.94414179,0.00016575,2]
[351232193,1738460961353,-500.0,0.00016575,2]
[351232194,1738460961374,-504.44630711,0.00016575,2]
[351232195,1738460961394,-504.88703297,0.00016575,2]
[351232196,1738460961417,-501.55619176,0.00016575,2]
[351232197,1738460961439,-500.0,0.00016575,2]
[351232198,1738460961460,-500.0,0.00016575,2]
[351232199,1738460961481,-500.0,0.00016575,2]
[351232200,1738460961502,-500.0,0.00016575,2]
[351232201,1738460961524,-545.6158532,0.00016575,2]
[351232202,1738460961545,-506.0349568,0.00016575,2]
[351232203,1738460961566,-500.0,0.00016575,2]
[351232204,1738460961587,-505.92987176,0.00016575,2]
[351232205,1738460961607,-500.0,0.00016575,2]
[351232206,1738460961629,-500.0,0.00016575,2]
[351232207,1738460961653,-500.0,0.00016575,2]
[351232208,1738460961675,-508.14646979,0.00016575,2]
[351232209,1738460961696,-500.0,0.00016575,2]
[351232210,1738460961717,-502.21385777,0.00016575,2]
[351232211,1738460961738,-505.26300143,0.00016575,2]
[351232212,1738460961758,-507.54795284,0.00016575,2]
[351232213,1738460961779,-629.53621773,0.00016575,2]
[351232214,1738460961799,-501.69650908,0.00016575,2]
[351232215,1738460961823,-508.88990587,0.00016575,2]
[351232216,1738460961844,-186.68484844,0.00016575,2]
[351232217,1738460961865,-503.43195473,0.00016575,2]
[351232218,1738460961885,-622.06035062,0.00016575,2]
[351232219,1738460961910,-504.96560671,0.00016575,2]
[351232220,1738460961931,-500.0,0.00016575,2]
[351232221,1738460961951,-334.97371298,0.00016575,2]
[351232222,1738460961973,-500.0,0.00016575,2]
[351232223,1738460961994,-500.0,0.00016575,2]
[351232224,1738460962015,-504.65412125,0.00016575,2]
[351232225,1738460962036,-502.05271851,0.00016575,2]
[351232226,1738460962056,-500.0,0.00016575,2]
[351232227,1738460962078,-500.0,0.00016575,2]
[351232228,1738460962098,-500.0,0.00016575,2]
[351232229,1738460962118,-500.0,0.00016575,2]
[351232230,1738460962139,-500.0,0.00016575,2]
[351232231,1738460962160,-500.0,0.00016575,2]
[351232232,1738460962181,-500.0,0.00016575,2]
[351232233,1738460962202,-500.0,0.00016575,2]
[351232234,1738460962222,-500.0,0.00016575,2]
[351232235,1738460962244,-500.0,0.00016575,2]
[351232236,1738460962266,-500.0,0.00016575,2]
[351232237,1738460962288,-247.82460727,0.00016575,2]
[351232238,1738460962310,-554.432884,0.00016575,2]
[351232239,1738460962331,-500.0,0.00016575,2]
[351232240,1738460962351,-501.28561336,0.00016575,2]
[351232241,1738460962372,-500.0,0.00016575,2]
[351232242,1738460962394,-354.46044986,0.00016575,2]
[351232243,1738460962417,-502.53106967,0.00016575,2]
[351232244,1738460962439,-501.86823928,0.00016575,2]
[351232245,1738460962461,-501.56341862,0.00016575,2]
[351232246,1738460962482,-504.67061649,0.00016575,2]
[351232247,1738460962503,-500.0,0.00016575,2]
[351232248,1738460962527,-500.0,0.00016575,2]
[351232249,1738460962549,-504.77948092,0.00016575,2]
[351232250,1738460962570,-500.0,0.00016575,2]
[351232251,1738460962591,-503.05023233,0.00016575,2]
[351232252,1738460962613,-504.59289163,0.00016575,2]
[351232253,1738460962635,-502.48924389,0.00016575,2]
[351232254,1738460962657,-504.33861382,0.00016575,2]
[351232255,1738460962678,-501.92201831,0.00016575,2]
[351232256,1738460962698,-502.66764538,0.00016575,2]
[351232257,1738460962719,-359.10557967,0.00016575,2]
[351232258,1738460962738,-501.40366909,0.00016575,2]
[351232259,1738460962759,-505.5691222,0.00016575,2]
[351232260,1738460962782,-1532.95,0.00016575,2]
[351232261,1738460962802,-500.0,0.00016575,2]
[351232262,1738460962827,-845.17,0.00016575,2]
[351232263,1738460962847,-504.07394181,0.00016575,2]
[351232264,1738460962868,-502.72703324,0.00016575,2]
[351232265,1738460962890,-1050.87,0.00016575,2]
[351232266,1738460962991,-505.88370307,0.00016575,2]
[351232267,1738460963016,-500.0,0.00016575,2]
[351232268,1738460963039,-510.50077302,0.00016575,2]
[351232269,1738460963061,-999.54,0.00016575,2]
[351232270,1738460963082,-500.0,0.00016575,2]
[351232271,1738460963106,-1073.92,0.00016575,2]
[351232272,1738460963130,-500.0,0.00016575,2]
[351232273,1738460963151,-503.19027022,0.00016575,2]
[351232274,1738460963173,-640.48478734,0.00016575,2]
[351232275,1738460963194,-433.51736992,0.00016575,2]